fUSD/lending_fUSD_20251117
["ID","MTS","AMOUNT","RATE_DAILY","PERIOD"]
[394290282,1763419858878,-500.0,0.00041589,30]
[394290283,1763419858888,-500.0,0.00041589,30]
[394290284,1763419858898,-500.0,0.00041589,30]
[394290285,1763419858908,-500.0,0.00041589,30]
[394290286,1763419858920,-500.0,0.00041589,30]
[394290287,1763419858929,-500.0,0.00041589,30]
[394290288,1763419858938,-500.0,0.00041589,30]
[394290289,1763419858948,-500.0,0.00041589,30]
[394290290,1763419858957,-500.0,0.00041589,30]
[394290291,1763419858966,-500.0,0.00041589,30]
[394290292,1763419858976,-500.0,0.00041589,30]
[394290293,1763419858985,-500.0,0.00041589,30]
[394290294,1763419858995,-500.0,0.00041589,30]
[394290295,1763419859005,-500.0,0.00041589,30]
[394290296,1763419859014,-500.0,0.00041589,30]
[394290297,1763419859023,-500.0,0.00041589,30]
[394290298,1763419859032,-500.0,0.00041589,30]
[394290299,1763419859042,-500.0,0.00041589,30]
[394290300,1763419859052,-458.58017959,0.00041589,30]
[394290301,1763419859062,-205.98964874,0.00041589,30]
[394290302,1763419859072,-292.77215036,0.00041589,30]
[394290303,1763419859081,-500.0,0.00041589,30]
[394290304,1763419859090,-500.0,0.00041589,30]
[394290305,1763419859100,-500.0,0.00041589,30]
[394290306,1763419859109,-156.36204106,0.00041589,30]
[394290307,1763419859119,-500.0,0.00041589,30]
[394290308,1763419859128,-500.0,0.00041589,30]
[394290309,1763419859137,-260.52505086,0.00041589,30]
[394290310,1763419859146,-500.0,0.00041589,30]
[394290311,1763419859156,-500.0,0.00041589,30]
[394290312,1763419859165,-616.95507435,0.00041589,30]
[394290313,1763419859175,-500.0,0.00041589,30]
[394290314,1763419859184,-500.0,0.00041589,30]
[394290315,1763419859193,-500.0,0.00041589,30]
[394290316,1763419859203,-401.66787066,0.00041589,30]
[394290317,1763419859212,-500.0,0.00041589,30]
[394290318,1763419859221,-500.0,0.00041589,30]
[394290319,1763419859230,-500.0,0.00041589,30]
[394290320,1763419859239,-215.86203705,0.00041589,30]
[394290321,1763419859248,-500.0,0.00041589,30]
[394290322,1763419859257,-500.0,0.00041589,30]
[394290323,1763419859266,-500.0,0.00041589,30]
[394290324,1763419859275,-500.0,0.00041589,30]
[394290325,1763419859284,-500.0,0.00041589,30]
[394290326,1763419859294,-500.0,0.00041589,30]
[394290327,1763419859304,-430.34075193,0.00041589,30]
[394290328,1763419859313,-500.0,0.00041589,30]
[394290329,1763419859322,-500.0,0.00041589,30]
[394290330,1763419859332,-370.59170639,0.00041589,30]
[394290331,1763419859343,-500.0,0.00041589,30]
[394290332,1763419859352,-500.0,0.00041589,30]
[394290333,1763419859363,-500.0,0.00041589,30]
[394290334,1763419859372,-500.0,0.00041589,30]
[394290335,1763419859383,-500.0,0.00041589,30]
[394290336,1763419859394,-500.0,0.00041589,30]
[394290337,1763419859404,-500.0,0.00041589,30]
[394290338,1763419859414,-500.0,0.00041589,30]
[394290339,1763419859423,-500.0,0.00041589,30]
[394290340,1763419859433,-500.0,0.00041589,30]
[394290341,1763419859442,-500.0,0.00041589,30]
[394290342,1763419859451,-500.0,0.00041589,30]
[394290343,1763419859461,-1000.0,0.00041591,2]
[394290344,1763419859470,-33327.7153,0.00041591,2]
[394290345,1763419859479,-300.0,0.000416,15]
[394290346,1763419859488,-779.1,0.00041643,30]
[394290347,1763419859499,-1000.0,0.00041644,14]
[394290348,1763419859508,-150.0,0.00041671,30]
[394290349,1763419859517,-150.0,0.00041671,30]
[394290350,1763419859527,-150.0,0.00041671,30]
[394290351,1763419859536,-150.0,0.00041671,30]
[394290352,1763419859546,-500.0,0.00041673,10]
[394290353,1763419859556,-1000.0,0.00041673,10]
[394290354,1763419859566,-1256.2364736,0.00041676,2]
[394290355,1763419859575,-500.0,0.00041683,30]
[394290356,1763419859584,-500.0,0.00041683,30]
[394290357,1763419859594,-500.0,0.00041683,30]
[394290358,1763419859603,-500.0,0.00041683,30]
[394290359,1763419859612,-500.0,0.00041683,30]
[394290360,1763419859622,-151.0,0.00041684,120]
[394290361,1763419859631,-151.0,0.00041684,120]
[394290362,1763419859641,-151.0,0.00041684,120]
[394290363,1763419859650,-151.0,0.00041684,120]
[394290364,1763419859659,-151.0,0.00041684,120]
[394290365,1763419859668,-151.0,0.00041684,120]
[394290366,1763419859677,-151.104172,0.00041684,120]
[394290367,1763419859687,-151.0,0.00041684,120]
[394290368,1763419859695,-151.0,0.00041684,120]
[394290369,1763419859705,-151.0,0.00041684,120]
[394290370,1763419859714,-151.0,0.00041684,120]
[394290371,1763419859723,-151.0,0.00041684,120]
[394290372,1763419859733,-151.0,0.00041684,120]
[394290373,1763419859742,-151.0,0.00041684,120]
[394290374,1763419859752,-151.0,0.00041684,120]
[394290375,1763419859761,-152.096875,0.00041684,30]
[394290376,1763419859770,-151.0,0.00041684,120]
[394290377,1763419859779,-151.0,0.00041684,120]
[394290378,1763419859789,-151.0,0.00041684,120]
[394290379,1763419859799,-151.0,0.00041684,60]
[394290380,1763419859808,-151.0,0.00041684,60]
[394290381,1763419859817,-151.0,0.00041684,120]
[394290382,1763419859826,-253.333731,0.00041684,120]
[394290383,1763419859836,-500.0,0.00041684,30]
[394290384,1763419859849,-154.36176229,0.00041684,30]
[394290385,1763419859859,-581.76,0.00041684,30]
[394290386,1763419859868,-581.76,0.00041684,30]
[394290387,1763419859878,-581.76,0.00041684,30]
[394290388,1763419859888,-500.0,0.00041684,30]
[394290389,1763419859897,-581.76,0.00041684,30]
[394290390,1763419859907,-500.0,0.00041684,30]
[394290391,1763419859919,-581.76,0.00041684,30]
[394290392,1763419859928,-500.0,0.00041684,30]
[394290393,1763419859938,-581.76,0.00041684,30]
[394290394,1763419859948,-500.0,0.00041684,30]
[394290395,1763419860092,-581.76,0.00041684,30]
[394290396,1763419860103,-500.0,0.00041684,30]
[394290397,1763419860114,-581.76,0.00041684,30]
[394290398,1763419860125,-500.0,0.00041684,30]
[394290399,1763419860134,-581.76,0.00041684,30]
[394290400,1763419860144,-500.0,0.00041684,30]
[394290401,1763419860154,-581.76,0.00041684,30]
[394290402,1763419860164,-500.0,0.00041684,30]
[394290403,1763419860173,-581.76,0.00041684,30]
[394290404,1763419860182,-500.0,0.00041684,30]
[394290405,1763419860192,-581.76,0.00041684,30]
[394290406,1763419860201,-260.910014,0.00041684,30]
[394290407,1763419860210,-581.82674428,0.00041684,30]
[394290408,1763419860219,-500.0,0.00041684,30]
[394290409,1763419860228,-500.0,0.00041684,30]
[394290410,1763419860237,-494.11621489,0.00041684,30]
[394290411,1763419860247,-404.59342973,0.00041684,30]
[394290412,1763419860256,-500.0,0.00041684,30]
[394290413,1763419860265,-500.0,0.00041684,30]
[394290414,1763419860274,-500.0,0.00041684,30]
[394290415,1763419860283,-649.14127326,0.00041684,30]
[394290416,1763419860293,-500.0,0.00041684,30]
[394290417,1763419860304,-500.0,0.00041684,30]
[394290418,1763419860313,-500.0,0.00041684,30]
[394290419,1763419860322,-500.0,0.00041684,30]
[394290420,1763419860332,-500.0,0.00041684,30]
[394290421,1763419860341,-500.0,0.00041684,30]
[394290422,1763419860350,-500.0,0.00041684,30]
[394290423,1763419860360,-500.0,0.00041684,30]
[394290424,1763419860370,-518.48881008,0.00041684,30]
[394290425,1763419860379,-500.0,0.00041684,30]
[394290426,1763419860389,-500.0,0.00041684,30]
[394290427,1763419860401,-500.0,0.00041684,30]
[394290428,1763419860410,-500.0,0.00041684,30]
[394290429,1763419860420,-500.0,0.00041684,30]
[394290430,1763419860430,-500.0,0.00041684,30]
[394290431,1763419860439,-500.0,0.00041684,30]
[394290432,1763419860449,-500.0,0.00041684,30]
[394290433,1763419860458,-500.0,0.00041684,30]
[394290434,1763419860468,-500.0,0.00041684,30]
[394290435,1763419860477,-599.1,0.00041684,30]
[394290436,1763419860486,-500.0,0.00041684,30]
[394290437,1763419860495,-391.07887772,0.00041684,30]
[394290438,1763419860504,-439.37939344,0.00041684,30]
[394290439,1763419860513,-500.0,0.00041684,30]
[394290440,1763419860522,-500.0,0.00041684,30]
[394290441,1763419860531,-500.0,0.00041684,30]
[394290442,1763419860540,-239.321662,0.00041684,30]
[394290443,1763419860550,-500.0,0.00041684,30]
[394290444,1763419860559,-500.0,0.00041684,30]
[394290445,1763419860569,-567.94745505,0.00041684,30]
[394290446,1763419860578,-500.0,0.00041684,30]
[394290447,1763419860587,-500.0,0.00041684,30]
[394290448,1763419860597,-500.0,0.00041684,30]
[394290449,1763419860606,-500.0,0.00041684,30]
[394290450,1763419860615,-500.0,0.00041684,30]
[394290451,1763419860624,-500.0,0.00041684,30]
[394290452,1763419860634,-500.0,0.00041684,30]
[394290453,1763419860643,-500.0,0.00041684,30]
[394290454,1763419860653,-500.0,0.00041684,30]
[394290455,1763419860662,-630.40246909,0.00041684,30]
[394290456,1763419860671,-878.15,0.00041684,30]
[394290457,1763419860681,-878.15,0.00041684,30]
[394290458,1763419860690,-878.15,0.00041684,30]
[394290459,1763419860699,-878.15,0.00041684,30]
[394290460,1763419860709,-878.15,0.00041684,30]
[394290461,1763419860719,-878.15,0.00041684,30]
[394290462,1763419860728,-878.15,0.00041684,30]
[394290463,1763419860737,-878.15,0.00041684,30]
[394290464,1763419860746,-878.15,0.00041684,30]
[394290465,1763419860756,-878.15,0.00041684,30]
[394290466,1763419860766,-878.15,0.00041684,30]
[394290467,1763419860776,-878.15,0.00041684,30]
[394290468,1763419860787,-878.15,0.00041684,30]
[394290469,1763419860797,-878.15,0.00041684,30]
[394290470,1763419860806,-878.27710235,0.00041684,30]
[394290471,1763419860817,-500.0,0.00041684,30]
[394290472,1763419860826,-500.0,0.00041684,30]
[394290473,1763419860837,-500.0,0.00041684,30]
[394290474,1763419860850,-500.0,0.00041684,30]
[394290475,1763419860859,-282.05796948,0.00041684,30]
[394290476,1763419860868,-652.13,0.00041684,30]
[394290477,1763419860878,-652.13,0.00041684,30]
[394290478,1763419860888,-652.13,0.00041684,30]
[394290479,1763419860899,-652.13,0.00041684,30]
[394290480,1763419860910,-652.13,0.00041684,30]
[394290481,1763419860921,-652.13,0.00041684,30]
[394290482,1763419860931,-652.13,0.00041684,30]
[394290483,1763419860940,-652.13,0.00041684,30]
[394290484,1763419860949,-652.13,0.00041684,30]
[394290485,1763419860958,-652.13,0.00041684,30]
[394290486,1763419860967,-652.13,0.00041684,30]
[394290487,1763419860976,-652.13,0.00041684,30]
[394290488,1763419860986,-652.13,0.00041684,30]
[394290489,1763419860994,-652.13,0.00041684,30]
[394290490,1763419861004,-652.26363157,0.00041684,30]
[394290491,1763419861013,-518.44,0.00041684,30]
[394290492,1763419861023,-518.44,0.00041684,30]
[394290493,1763419861032,-518.44,0.00041684,30]
[394290494,1763419861041,-518.44,0.00041684,30]
[394290495,1763419861052,-518.44,0.00041684,30]
[394290496,1763419861061,-518.44,0.00041684,30]
[394290497,1763419861071,-518.44,0.00041684,30]
[394290498,1763419861081,-518.44,0.00041684,30]
[394290499,1763419861091,-518.44,0.00041684,30]
[394290500,1763419861100,-518.44,0.00041684,30]
[394290501,1763419861110,-500.0,0.00041684,30]
[394290502,1763419861119,-518.44,0.00041684,30]
[394290503,1763419861128,-500.0,0.00041684,30]
[394290504,1763419861138,-518.44,0.00041684,30]
[394290505,1763419861147,-500.0,0.00041684,30]
[394290506,1763419861157,-518.44,0.00041684,30]
[394290507,1763419861166,-500.0,0.00041684,30]
[394290508,1763419861176,-518.44,0.00041684,30]
[394290509,1763419861185,-351.54,0.00041684,30]
[394290510,1763419861194,-518.60102815,0.00041684,30]
[394290511,1763419861203,-500.0,0.00041684,30]
[394290512,1763419861213,-500.0,0.00041684,30]
[394290513,1763419861223,-500.0,0.00041684,30]
[394290514,1763419861232,-259.07643538,0.00041684,30]
[394290515,1763419861241,-597.73,0.00041684,30]
[394290516,1763419861251,-597.73,0.00041684,30]
[394290517,1763419861259,-597.73,0.00041684,30]
[394290518,1763419861268,-597.73,0.00041684,30]
[394290519,1763419861277,-597.73,0.00041684,30]
[394290520,1763419861286,-597.73,0.00041684,30]
[394290521,1763419861296,-597.73,0.00041684,30]
[394290522,1763419861307,-597.73,0.00041684,30]
[394290523,1763419861316,-597.73,0.00041684,30]
[394290524,1763419861330,-597.73,0.00041684,30]
[394290525,1763419861340,-597.73,0.00041684,30]
[394290526,1763419861349,-597.73,0.00041684,30]
[394290527,1763419861358,-597.73,0.00041684,30]
[394290528,1763419861367,-597.73,0.00041684,30]
[394290529,1763419861376,-597.78273959,0.00041684,30]
[394290530,1763419861385,-500.0,0.00041684,30]
[394290531,1763419861395,-500.0,0.00041684,30]
[394290532,1763419861404,-500.0,0.00041684,30]
[394290533,1763419861413,-500.0,0.00041684,30]
[394290534,1763419861422,-500.0,0.00041684,30]
[394290535,1763419861431,-613.97223105,0.00041684,30]
[394290536,1763419861441,-500.0,0.00041684,30]
[394290537,1763419861450,-500.0,0.00041684,30]
[394290538,1763419861460,-500.0,0.00041684,30]
[394290539,1763419861469,-500.0,0.00041684,30]
[394290540,1763419861478,-500.0,0.00041684,30]
[394290541,1763419861487,-500.0,0.00041684,30]
[394290542,1763419861496,-500.0,0.00041684,30]
[394290543,1763419861505,-500.0,0.00041684,30]
[394290544,1763419861514,-500.0,0.00041684,30]
[394290545,1763419861523,-500.0,0.00041684,30]
[394290546,1763419861532,-500.0,0.00041684,30]
[394290547,1763419861541,-604.74425142,0.00041684,30]
[394290548,1763419861552,-717.95,0.00041684,30]
[394290549,1763419861562,-717.95,0.00041684,30]
[394290550,1763419861572,-717.95,0.00041684,30]
[394290551,1763419861581,-717.95,0.00041684,30]
[394290552,1763419861590,-717.95,0.00041684,30]
[394290553,1763419861599,-717.95,0.00041684,30]
[394290554,1763419861609,-717.95,0.00041684,30]
[394290555,1763419861618,-717.95,0.00041684,30]
[394290556,1763419861628,-717.95,0.00041684,30]
[394290557,1763419861637,-717.95,0.00041684,30]
[394290558,1763419861646,-717.95,0.00041684,30]
[394290559,1763419861656,-718.04197607,0.00041684,30]
[394290560,1763419861666,-883.57,0.00041684,30]
[394290561,1763419861675,-883.57,0.00041684,30]
[394290562,1763419861685,-883.57,0.00041684,30]
[394290563,1763419861694,-883.57,0.00041684,30]
[394290564,1763419861704,-883.57,0.00041684,30]
[394290565,1763419861714,-883.57,0.00041684,30]
[394290566,1763419861723,-500.0,0.00041684,30]
[394290567,1763419861732,-883.57,0.00041684,30]
[394290568,1763419861742,-500.0,0.00041684,30]
[394290569,1763419861751,-883.57,0.00041684,30]
[394290570,1763419861761,-500.0,0.00041684,30]
[394290571,1763419861770,-883.57,0.00041684,30]
[394290572,1763419861779,-500.0,0.00041684,30]
[394290573,1763419861788,-883.57,0.00041684,30]
[394290574,1763419861799,-500.0,0.00041684,30]
[394290575,1763419861808,-883.57,0.00041684,30]
[394290576,1763419861817,-500.0,0.00041684,30]
[394290577,1763419861827,-883.57,0.00041684,30]
[394290578,1763419861839,-500.0,0.00041684,30]
[394290579,1763419861849,-883.57,0.00041684,30]
[394290580,1763419861858,-500.0,0.00041684,30]
[394290581,1763419861867,-883.57,0.00041684,30]
[394290582,1763419861877,-500.0,0.00041684,30]
[394290583,1763419861886,-883.74777429,0.00041684,30]
[394290584,1763419861895,-500.0,0.00041684,30]
[394290585,1763419861904,-448.36722831,0.00041684,30]
[394290586,1763419861915,-500.0,0.00041684,30]
[394290587,1763419861924,-500.0,0.00041684,30]
[394290588,1763419861933,-500.0,0.00041684,30]
[394290589,1763419861942,-448.89780007,0.00041684,30]
[394290590,1763419861951,-458.93683039,0.00041684,30]
[394290591,1763419861960,-500.0,0.00041684,30]
[394290592,1763419861971,-500.0,0.00041684,30]
[394290593,1763419861984,-500.0,0.00041684,30]
[394290594,1763419861993,-500.0,0.00041684,30]
[394290595,1763419862002,-584.61674289,0.00041684,30]
[394290596,1763419862011,-506.9182492,0.00041684,30]
[394290597,1763419862021,-500.0,0.00041684,30]
[394290598,1763419862030,-500.0,0.00041684,30]
[394290599,1763419862039,-184.51621562,0.00041684,30]
[394290600,1763419862049,-216.49380087,0.00041684,30]
[394290601,1763419862060,-500.0,0.00041684,30]
[394290602,1763419862071,-500.0,0.00041684,30]
[394290603,1763419862080,-500.0,0.00041684,30]
[394290604,1763419862091,-176.94999999,0.00041684,30]
[394290605,1763419862099,-500.0,0.00041684,30]
[394290606,1763419862110,-500.0,0.00041684,30]
[394290607,1763419862120,-500.0,0.00041684,30]
[394290608,1763419862129,-500.0,0.00041684,30]
[394290609,1763419862138,-500.0,0.00041684,30]
[394290610,1763419862147,-500.0,0.00041684,30]
[394290611,1763419862156,-500.0,0.00041684,30]
[394290612,1763419862165,-500.0,0.00041684,30]
[394290613,1763419862174,-401.16055538,0.00041684,30]
[394290614,1763419862183,-500.0,0.00041684,30]
[394290615,1763419862191,-500.0,0.00041684,30]
[394290616,1763419862200,-344.15698734,0.00041684,30]
[394290617,1763419862210,-500.0,0.00041684,30]
[394290618,1763419862219,-500.0,0.00041684,30]
[394290619,1763419862228,-500.0,0.00041684,30]
[394290620,1763419862237,-500.0,0.00041684,30]
[394290621,1763419862247,-500.0,0.00041684,30]
[394290622,1763419862256,-500.0,0.00041684,30]
[394290623,1763419862266,-500.0,0.00041684,30]
[394290624,1763419862275,-500.0,0.00041684,30]
[394290625,1763419862284,-500.0,0.00041684,30]
[394290626,1763419862293,-433.56568802,0.00041684,30]
[394290627,1763419862303,-500.0,0.00041684,30]
[394290628,1763419862312,-500.0,0.00041684,30]
[394290629,1763419862322,-402.57717721,0.00041684,30]
[394290630,1763419862332,-500.0,0.00041684,30]
[394290631,1763419862341,-500.0,0.00041684,30]
[394290632,1763419862350,-500.0,0.00041684,30]
[394290633,1763419862360,-500.0,0.00041684,30]
[394290634,1763419862371,-357.19140158,0.00041684,30]
[394290635,1763419862382,-500.0,0.00041684,30]
[394290636,1763419862392,-500.0,0.00041684,30]
[394290637,1763419862403,-500.0,0.00041684,30]
[394290638,1763419862413,-500.0,0.00041684,30]
[394290639,1763419862422,-500.0,0.00041684,30]
[394290640,1763419862431,-500.0,0.00041684,30]
[394290641,1763419862440,-500.0,0.00041684,30]
[394290642,1763419862450,-565.46472446,0.00041684,30]
[394290643,1763419862460,-7351.81150656,0.00041684,27]
[394290644,1763419862470,-697057.44389198,0.00041685,7]
[394290645,1763419862479,-535156.22175011,0.00041685,7]
[394290646,1763419862829,-484.97,0.00041095,30]
[394290647,1763419862948,-15.03,0.00041095,30]
[394290648,1763419862957,-500.0,0.00041095,30]
[394290649,1763419862966,-500.0,0.00041095,30]
[394290650,1763419862975,-500.0,0.00041095,30]
[394290651,1763419862984,-500.0,0.00041095,30]
[394290652,1763419862994,-500.0,0.00041095,30]
[394290653,1763419863003,-541.4443942,0.00041095,30]
[394290654,1763419863014,-372.48429279,0.00041095,30]
[394290655,1763419863034,-127.51570721,0.00041095,30]
[394290656,1763419863043,-500.0,0.00041095,30]
[394290657,1763419863053,-400.0,0.00041095,30]
[394290658,1763419863062,-500.0,0.00041095,30]
[394290659,1763419863071,-500.0,0.00041095,30]
[394290660,1763419863080,-500.0,0.00041095,30]
[394290661,1763419863090,-500.0,0.00041095,30]
[394290662,1763419863099,-500.0,0.00041095,30]
[394290663,1763419863110,-500.0,0.00041095,30]
[394290664,1763419863120,-328.11697659,0.00041095,30]
[394290665,1763419863130,-500.0,0.00041095,30]
[394290666,1763419863273,-500.0,0.00041095,30]
[394290667,1763419863283,-500.0,0.00041095,30]
[394290668,1763419863293,-600.0,0.000411,2]
[394290669,1763419863304,-500.0,0.00041352,30]
[394290670,1763419863313,-500.0,0.00041584,30]
[394290671,1763419863322,-129.03149819,0.00041683,30]
[394290672,1763419863334,-370.96850181,0.00041683,30]
[394290673,1763419863344,-500.0,0.00041684,30]
[394290674,1763419863354,-143.99225561,0.00041684,30]
[394290675,1763419863365,-356.00774439,0.00041684,30]
[394290676,1763419863374,-500.0,0.00041684,30]
[394290677,1763419863383,-424.30225341,0.00041684,30]
[394290678,1763419863394,-75.69774659,0.00041684,30]
[394290679,1763419863403,-500.0,0.00041684,30]
[394290680,1763419863413,-500.0,0.00041684,30]
[394290681,1763419863421,-541.39256567,0.00041685,7]
[394290688,1763420222816,250.0,0.00017,2]
[394290690,1763420357226,305.3232488,0.000164,2]
[394290719,1763421031840,-300.0,0.00019,2]
[394290720,1763421031849,-338.57656952,0.00019,2]
[394290721,1763421031858,-333.2322,0.0001935,2]
[394290722,1763421031867,-337.32976208,0.0001945,2]
[394290723,1763421031877,-195.0,0.0001945,2]
[394290724,1763421031886,-259.34440446,0.00020607,2]
[394290725,1763421031896,-150.0,0.00020707,2]
[394290726,1763421031905,-1200.0,0.00020898,2]
[394290727,1763421031914,-1200.0,0.00020899,2]
[394290728,1763421031923,-177.0,0.00020899,2]
[394290729,1763421031932,-300.0,0.00020899,2]
[394290730,1763421031941,-300.0,0.00020899,2]
[394290731,1763421031951,-250.0,0.000209,2]
[394290732,1763421031960,-195.0,0.000209,2]
[394290733,1763421031970,-350.0,0.00021,2]
[394290734,1763421031979,-1680.0,0.00022736,2]
[394290735,1763421031988,-420.0,0.00022736,2]
[394290736,1763421031997,-1457.0,0.00022843,2]
[394290737,1763421032008,-400.0,0.00023,2]
[394290738,1763421032017,-679.04045606,0.00023279,2]
[394290739,1763421032026,-2933.54683442,0.00023279,2]
[394290740,1763421032035,-2351.0,0.00024734,2]
[394290741,1763421032045,-480.0,0.00024734,2]
[394290742,1763421032054,-450.0,0.00025,2]
[394290743,1763421032063,-580.0,0.00026908,2]
[394290744,1763421032072,-259.34440445,0.0002889,2]
[394290745,1763421032081,-1822.0,0.000315,2]
[394290746,1763421032091,-1822.41043889,0.000352,2]
[394290747,1763421032100,-189.88,0.00035613,2]
[394290748,1763421032109,-180.27,0.00036294,120]
[394290749,1763421032118,-1598.0,0.00036718,2]
[394290750,1763421032129,-250.0,0.00036718,2]
[394290751,1763421032138,-242.32,0.00036718,2]
[394290752,1763421032147,-240.0,0.00037,2]
[394290753,1763421032156,-851.92205124,0.00037111,5]
[394290754,1763421032165,-259.34440445,0.00037173,2]
[394290755,1763421032174,-151.0,0.00037189,2]
[394290756,1763421032183,-151.0,0.00037189,2]
[394290757,1763421032196,-151.0,0.00037189,2]
[394290758,1763421032206,-151.0,0.00037189,2]
[394290760,1763421032215,-151.0,0.00037189,2]
[394290762,1763421032225,-151.0,0.00037189,2]
[394290764,1763421032236,-151.0,0.00037189,2]
[394290766,1763421032245,-151.0,0.00037189,2]
[394290768,1763421032255,-123.75156644,0.00037189,2]
[394290771,1763421032276,-27.24843356,0.00037189,2]
[394290773,1763421032285,-151.0,0.00037189,2]
[394290775,1763421032294,-151.0,0.00037189,2]
[394290777,1763421032303,-151.0,0.00037189,2]
[394290779,1763421032311,-151.0,0.00037189,2]
[394290781,1763421032320,-151.0,0.00037189,2]
[394290784,1763421032329,-151.0,0.00037189,2]
[394290785,1763421032338,-65.75156644,0.00037189,2]
[394290786,1763421032348,-85.24843356,0.00037189,2]
[394290787,1763421032357,-151.0,0.00037189,2]
[394290788,1763421032366,-151.0,0.00037189,2]
[394290789,1763421032374,-151.0,0.00037189,2]
[394290790,1763421032383,-151.0,0.00037189,2]
[394290791,1763421032391,-5895.50270909,0.0003721,2]
[394290792,1763421032400,-1019.203,0.0003721,47]
[394290793,1763421032409,-5392.46929106,0.00037211,2]
[394290794,1763421032419,-70627.03070894,0.00037211,2]
[394290796,1763421032428,-500.0,0.00037273,5]
[394290798,1763421032437,-500.97676262,0.00037273,5]
[394290800,1763421032446,-500.0,0.00037273,5]
[394290802,1763421032455,-500.0,0.00037273,5]
[394290804,1763421032464,-592.06653198,0.00037273,5]
[394290806,1763421032473,-500.0,0.00037273,5]
[394290808,1763421032481,-511.96700969,0.00037273,5]
[394290810,1763421032490,-500.68799219,0.00037273,5]
[394290812,1763421032500,-500.0,0.00037273,5]
[394290814,1763421032510,-500.0,0.00037273,5]
[394290815,1763421032519,-500.0,0.00037273,5]
[394290818,1763421032529,-500.0,0.00037273,5]
[394290819,1763421032538,-500.0,0.00037273,2]
[394290821,1763421032547,-500.0,0.00037273,3]
[394290823,1763421032557,-500.7937568,0.00037273,5]
[394290826,1763421032567,-500.0,0.00037273,5]
[394290828,1763421032577,-500.0,0.00037273,2]
[394290830,1763421032586,-500.0,0.00037273,5]
[394290832,1763421032596,-150.0,0.00037405,7]
[394290833,1763421032604,-150.0,0.00037405,7]
[394290836,1763421032614,-150.0,0.00037405,7]
[394290838,1763421032623,-150.0,0.00037405,7]
[394290840,1763421032632,-150.0,0.00037405,7]
[394290842,1763421032640,-150.0,0.00037405,7]
[394290843,1763421032650,-150.0,0.00037405,7]
[394290845,1763421032659,-150.0,0.00037405,7]
[394290847,1763421032668,-150.0,0.00037405,7]
[394290849,1763421032677,-1189.97,0.00037547,2]
[394290852,1763421032688,-1852.42,0.00037552,2]
[394290854,1763421032698,-2665.46305935,0.00037821,2]
[394290856,1763421032707,-156.72156939,0.00037821,2]
[394290858,1763421032716,-1000.0,0.00037821,5]
[394290859,1763421032725,-653.88483671,0.00037821,5]
[394290862,1763421032735,-972.01807675,0.00037821,5]
[394290863,1763421032744,-1000.0,0.00037821,5]
[394290865,1763421032753,-825.74821255,0.00037821,5]